bitfinex-derivatives/quotes_SOLF0:USTF0_20241015
["timestamp","ask_amount","ask_price","bid_price","bid_amount"]
[1729005258565,48.56425271,152.01,151.89,1.4085]
[1729005258968,3.2907,151.97,151.89,1.4085]
[1729005259169,48.56425271,152.01,151.9,3.36855774]
[1729005259578,45.25,152.03,151.92,45.25]
[1729005259873,1.3876,152.05,151.92,45.25]
[1729005260071,3.2895,152.02,151.98,3.2902]
[1729005260272,4.73213188,152.05,151.98,3.2902]
[1729005260480,4.73213188,152.05,151.95,45.25]
[1729005260666,3.2893,152.03,151.95,45.25]
[1729005260960,89.66291263,152.06,151.95,45.25]
[1729005261166,3.2892,152.04,152.0,3.2898]
[1729005261469,89.66291263,152.06,151.95,45.25]
[1729005261677,134.91291263,152.06,151.92,45.25]
[1729005262375,45.25,152.03,151.92,45.25]
[1729005262676,3.2906,151.97,151.93,3.2913]
[1729005262973,45.25,152.0,151.89,1.4085]
[1729005263362,3.2909,151.96,151.92,3.2915]
[1729005263567,45.25,152.0,151.89,1.4085]
[1729005263972,3.2906,151.97,151.93,3.2913]
[1729005264180,1.3375,152.02,151.92,45.25]
[1729005264475,45.25,152.05,151.94,45.25]
[1729005264679,71.04,152.06,151.94,45.25]
[1729005264871,71.04,152.06,151.97,45.25]
[1729005265068,3.2893,152.03,152.0,3.2898]
[1729005265680,4.69718161,152.07,151.97,45.25]
[1729005265977,4.69718161,152.07,151.92,45.25]
[1729005265978,45.25,152.06,151.92,45.25]
[1729005266185,45.25,152.03,151.96,3.2906]
[1729005266367,3.2905,151.98,151.89,46.6585]
[1729005266776,3.29,152.0,151.91,45.25]
[1729005267081,45.25,152.06,151.94,45.25]
[1729005267279,3.2891,152.04,151.94,45.25]
[1729005267474,3.2891,152.04,151.96,45.25]
[1729005267675,15.36,152.1,151.96,48.55700671]
[1729005267976,1.3463,152.11,151.99,45.25]
[1729005268477,3.2883,152.08,152.05,3.2888]
[1729005268881,16.7805,152.12,151.99,48.46088428]
[1729005268882,16.7805,152.12,152.02,45.25]
[1729005269180,3.288,152.09,152.06,3.2885]
[1729005270183,3.2874,152.12,152.09,3.2878]
[1729005270379,19.58378904,152.17,152.04,45.25]
[1729005270774,3.2875,152.12,152.08,3.288]
[1729005270987,19.58378904,152.17,152.04,45.25]
[1729005271276,19.58378904,152.17,152.02,45.25]
[1729005271277,45.25,152.15,152.02,45.25]
[1729005271483,45.25,152.13,152.0,45.25]
[1729005271781,45.25,152.1,152.01,3.2895]
[1729005271981,3.35921936,152.09,152.01,3.2895]
[1729005272375,3.289,152.05,152.01,3.2895]
[1729005272574,45.25,152.1,151.98,4.66713492]
[1729005272782,45.25,152.13,152.0,45.25]
[1729005274179,3.2881,152.09,152.05,3.2887]
[1729005274379,45.25,152.13,152.05,3.2887]
[1729005274579,3.2876,152.11,152.05,3.2887]
[1729005274777,45.25,152.13,152.0,45.25]
[1729005275176,3.2879,152.1,152.0,45.25]
[1729005275377,1.3416,152.15,152.02,45.25]
[1729005275684,1.3416,152.15,152.05,45.25]
[1729005275685,3.2869,152.14,152.05,45.25]
[1729005275985,1.3416,152.15,152.09,3.2878]
[1729005276172,3.2872,152.13,152.09,3.2878]
[1729005276577,3.2872,152.13,152.1,3.2877]
[1729005277488,3.30034427,152.18,152.12,45.25]
[1729005277687,3.30034427,152.18,152.15,45.25]
[1729005277883,3.30034427,152.18,152.17,3.2862]
[1729005278075,1.2909,152.26,152.15,45.25]
[1729005278474,1.2909,152.26,152.17,45.25]
[1729005278684,14.88,152.29,152.17,45.25]
[1729005278891,3.2846,152.25,152.21,3.2853]
[1729005279089,2.827,152.3,152.2,45.25]
[1729005279386,1.3959,152.3,152.22,45.25]
[1729005279584,1.2909,152.32,152.22,45.25]
[1729005279585,1.2909,152.32,152.26,3.2841]
[1729005280087,1.2909,152.32,152.22,45.25]
[1729005280278,1.2909,152.32,152.2,45.25]
[1729005280279,46.5409,152.32,152.2,45.25]
[1729005280590,45.25,152.3,152.17,64.73984488]
[1729005280886,46.5409,152.32,152.2,45.25]
[1729005281283,3.2841,152.27,152.2,45.25]
[1729005281482,46.5409,152.32,152.2,45.25]
[1729005281684,3.2838,152.29,152.24,3.2847]
[1729005281890,3.2838,152.29,152.2,45.25]
[1729005282287,3.2838,152.29,152.24,3.2845]
[1729005282494,3.2838,152.29,152.22,45.25]
[1729005282792,3.22044294,152.34,152.22,45.25]
[1729005282981,3.2834,152.31,152.25,45.25]
[1729005283177,60.11,152.37,152.25,45.25]
[1729005283878,60.11,152.37,152.27,3.2839]
[1729005284090,3.2832,152.32,152.25,48.58016731]
[1729005284289,60.11,152.37,152.29,3.2836]
[1729005284479,7.37732927,152.38,152.22,45.25]
[1729005284480,45.25,152.35,152.22,45.25]
[1729005284679,3.2836,152.3,152.22,45.25]
[1729005285187,7.37732927,152.38,152.2,45.25]
[1729005285188,45.25,152.33,152.2,45.25]
[1729005285391,45.25,152.3,152.17,64.71984488]
[1729005285580,48.54830125,152.3,152.17,64.71984488]
[1729005285782,45.25,152.28,152.17,4.60984488]
[1729005286595,2.7998,152.29,152.2,45.25]
[1729005286789,3.2841,152.28,152.2,45.25]
[1729005286985,1.3789,152.29,152.2,45.25]
[1729005287185,45.25,152.32,152.2,45.25]
[1729005287382,14.86,152.34,152.22,45.25]
[1729005288291,14.86,152.34,152.26,3.2843]
[1729005288593,14.86,152.34,152.22,45.25]
[1729005288891,1.4282,152.36,152.25,45.25]
[1729005289096,1.4282,152.36,152.27,45.25]
[1729005289285,3.2826,152.35,152.32,3.283]
[1729005289690,119.55138888,152.4,152.27,48.59450906]
[1729005289886,3.2823,152.36,152.32,3.283]
[1729005290394,3.282,152.37,152.33,3.2826]
[1729005290688,60.11,152.43,152.33,3.2826]
[1729005290882,1.11754444,152.42,152.31,3.29918873]
[1729005291086,3.22825256,152.41,152.3,45.25]
[1729005291282,45.25,152.4,152.28,3.28145468]
[1729005291487,3.2823,152.36,152.31,3.283]
[1729005291683,3.2823,152.36,152.28,3.2581377]
[1729005292101,48.45362194,152.4,152.31,3.2831]
[1729005292498,48.45362194,152.4,152.28,3.29787509]
[1729005292793,48.45362194,152.4,152.27,45.25]
[1729005292997,45.25,152.38,152.25,47.903]
[1729005293204,45.25,152.35,152.26,3.2842]
[1729005293495,3.30510007,152.34,152.26,3.2842]
[1729005293693,3.2838,152.29,152.25,3.2845]
[1729005295101,3.283,152.32,152.29,3.2836]
[1729005295600,45.25,152.33,152.18,2.7905]
[1729005295804,45.25,152.33,152.19,14.86]
[1729005296704,4.1844,152.34,152.21,45.25]
[1729005296905,3.2834,152.3,152.24,45.25]
[1729005297092,4.1844,152.34,152.24,45.25]
[1729005297401,3.284,152.28,152.24,3.2846]
[1729005297600,4.1844,152.34,152.21,45.25]
[1729005298494,3.2831,152.32,152.23,45.25]
[1729005298804,45.25,152.38,152.26,45.25]
[1729005299103,3.943,152.41,152.31,45.25]
[1729005300300,49.193,152.41,152.29,45.25]
[1729005300897,3.2818,152.38,152.32,45.25]
[1729005301199,2.6291,152.41,152.32,45.25]
[1729005301399,3.2814,152.4,152.37,3.2819]
[1729005301706,1.3219,152.41,152.32,45.25]
[1729005302003,2.6211,152.46,152.34,45.25]
[1729005302199,5.84761516,152.46,152.35,3.35917465]
[1729005302399,3.2811,152.41,152.35,3.35917465]
[1729005302603,2.6211,152.46,152.35,3.35917465]
[1729005302800,2.6211,152.46,152.34,45.25]
[1729005302801,2.6211,152.46,152.37,45.25]
[1729005303001,1.4184,152.47,152.39,45.25]
[1729005303210,60.07,152.51,152.39,45.25]
[1729005303211,14.82,152.51,152.42,45.25]
[1729005303504,3.2795,152.49,152.42,45.25]
[1729005303710,1.2953,152.54,152.44,45.25]
[1729005303895,48.50311273,152.59,152.46,45.25]
[1729005304095,2.7105,152.58,152.46,45.25]
[1729005304299,45.25,152.54,152.4,4.0775]
[1729005304604,45.25,152.52,152.4,4.0775]
[1729005304909,45.25,152.52,152.4,1.3395]
[1729005305203,1.4184,152.58,152.49,45.25]
[1729005305402,1.4184,152.58,152.47,45.25]
[1729005305403,2.6773,152.65,152.53,45.25]
[1729005305705,45.25,152.64,152.5,45.25]
[1729005306005,4.0705,152.65,152.55,45.25]
[1729005306201,4.0705,152.65,152.58,45.25]
[1729005306403,3.25638885,152.68,152.58,45.25]
[1729005306608,3.2761,152.65,152.58,48.5274]
[1729005306810,2.7182,152.69,152.58,48.5274]
[1729005306811,3.26327547,152.68,152.58,45.25]
[1729005307105,45.25,152.65,152.54,14.82]
[1729005307295,45.25,152.67,152.5,46.5928]
[1729005307501,45.25,152.54,152.32,6.566]
[1729005307806,48.6021457,152.54,152.39,45.25]
[1729005308008,45.25,152.57,152.44,45.25]
[1729005308198,3.2787,152.52,152.46,3.28]
[1729005308400,45.25,152.52,152.41,3.3111539]
[1729005308595,45.25,152.47,152.36,2.6415]
[1729005308905,45.25,152.53,152.4,45.25]
[1729005309107,45.25,152.56,152.42,45.25]
[1729005309305,3.2793,152.5,152.44,3.2804]
[1729005309507,45.25,152.53,152.41,3.27306555]
[1729005309815,3.2801,152.46,152.38,45.25]
[1729005310113,45.25,152.51,152.38,45.25]
[1729005310513,3.2796,152.48,152.43,3.2805]
[1729005310711,45.25,152.53,152.41,45.25]
[1729005310903,45.25,152.53,152.38,45.25]
[1729005311102,45.25,152.53,152.41,45.25]
[1729005311301,45.25,152.55,152.43,45.25]
[1729005311505,14.8,152.58,152.48,45.25]
[1729005311808,3.2776,152.57,152.52,3.2786]
[1729005312110,14.8,152.58,152.5,45.25]
[1729005312306,45.25,152.68,152.55,45.25]
[1729005312506,49.3086,152.68,152.55,45.25]
[1729005312708,49.3086,152.68,152.56,3.29748517]
[1729005312899,45.25,152.73,152.6,48.527]
[1729005313103,45.25,152.71,152.58,45.25]
[1729005313307,1.12532142,152.7,152.58,45.25]
[1729005313510,3.2761,152.65,152.58,45.25]
[1729005313709,45.25,152.71,152.58,45.25]
[1729005313906,45.25,152.68,152.55,45.25]
[1729005314308,48.56093225,152.73,152.6,45.25]
[1729005314622,3.276,152.65,152.58,48.5273]
[1729005314808,3.276,152.65,152.58,45.25]
[1729005315119,3.2757,152.66,152.6,3.277]
[1729005315303,45.25,152.65,152.52,3.36045684]
[1729005315616,45.25,152.69,152.55,45.25]
[1729005315821,1.12624911,152.68,152.55,45.25]
[1729005316116,45.25,152.64,152.52,45.25]
[1729005316414,46.5529,152.67,152.54,45.25]
[1729005316918,45.25,152.64,152.51,4.68222248]
[1729005317123,45.25,152.58,152.47,45.25]
[1729005317414,3.278,152.56,152.5,3.279]
[1729005317814,3.278,152.56,152.47,45.25]
[1729005317815,45.25,152.58,152.46,1.4011]
[1729005318021,45.25,152.58,152.47,45.25]
[1729005318318,3.2774,152.58,152.53,3.2784]
[1729005318515,45.25,152.64,152.47,45.25]
[1729005318516,48.57700452,152.64,152.52,48.55831348]
[1729005318821,3.2772,152.6,152.55,3.278]
[1729005319209,48.57700452,152.64,152.5,45.25]
[1729005319421,45.25,152.61,152.49,3.28142462]
[1729005319719,45.25,152.59,152.47,45.25]
[1729005319906,3.31093225,152.73,152.55,45.25]
[1729005320109,1.12609973,152.72,152.61,45.25]
[1729005320309,3.2751,152.69,152.62,3.2764]
[1729005320515,1.12609973,152.72,152.61,45.25]
[1729005320722,1.12609973,152.68,152.61,45.25]
[1729005320909,3.2749,152.7,152.64,3.276]
[1729005321112,1.3108,152.74,152.64,45.25]
[1729005321615,1.3108,152.74,152.64,48.58880938]
[1729005322129,1.3108,152.74,152.64,45.25]
[1729005322505,1.3108,152.74,152.6,45.25]
[1729005322506,45.25,152.71,152.6,45.25]
[1729005322709,45.25,152.68,152.57,3.21724556]
[1729005322906,3.21396901,152.67,152.57,48.46724556]
[1729005323113,60.03,152.71,152.57,48.46724556]
[1729005323114,60.03,152.71,152.57,45.25]
[1729005323304,60.03,152.71,152.58,3.28572547]
[1729005323509,60.03,152.71,152.57,45.25]
[1729005323717,60.03,152.71,152.6,45.25]
[1729005323915,3.2751,152.69,152.64,3.276]
[1729005324108,46.5608,152.74,152.62,45.25]
[1729005324306,1.3108,152.74,152.62,45.25]
[1729005324822,1.3108,152.74,152.63,3.31226554]
[1729005325018,1.3108,152.74,152.65,45.25]
[1729005325318,3.2752,152.69,152.63,3.2761]
[1729005325625,1.3108,152.74,152.62,45.25]
[1729005325811,3.2754,152.68,152.62,48.5264]
[1729005326019,1.3108,152.74,152.62,48.5264]
[1729005326323,3.2753,152.68,152.63,3.2763]
[1729005326521,45.25,152.7,152.59,3.21832258]
[1729005326827,45.25,152.7,152.58,45.25]
[1729005327126,3.2755,152.67,152.61,3.2766]
[1729005327418,3.2755,152.67,152.58,45.25]
[1729005327419,1.3108,152.74,152.63,45.25]
[1729005327619,3.2746,152.72,152.67,3.2753]
[1729005327823,45.25,152.74,152.63,45.25]
[1729005328123,3.2751,152.69,152.64,3.276]
[1729005328318,45.25,152.74,152.6,46.6575]
[1729005328620,3.2745,152.72,152.67,3.2753]
[1729005329022,1.3414,152.75,152.65,45.25]
[1729005329621,3.2758,152.66,152.61,3.2766]
[1729005329818,3.2758,152.66,152.6,3.28168097]
[1729005330019,3.2758,152.66,152.51,16.1786]
[1729005330020,3.2758,152.66,152.61,45.25]
[1729005330221,3.34131811,152.69,152.61,48.54970318]
[1729005330418,45.25,152.69,152.58,45.25]
[1729005330720,46.5914,152.75,152.54,45.25]
[1729005330721,45.25,152.66,152.54,45.25]
[1729005331114,1.3149,152.68,152.56,45.25]
[1729005331323,1.12714306,152.68,152.59,45.25]
[1729005331623,1.41,152.7,152.59,45.25]
[1729005332018,3.2757,152.66,152.61,3.2766]
[1729005332227,1.41,152.7,152.61,3.2766]
[1729005332724,1.41,152.7,152.59,45.25]
[1729005333233,1.41,152.7,152.59,48.5271]
[1729005333234,45.25,152.69,152.59,48.5271]
[1729005333425,45.25,152.69,152.56,48.49101251]
[1729005333633,1.41,152.7,152.56,48.49101251]
[1729005333634,3.2763,152.63,152.58,3.2773]
[1729005333828,45.25,152.69,152.56,45.25]
[1729005334230,1.12759129,152.68,152.61,3.2767]
[1729005334433,1.12759129,152.68,152.58,3.3423044]
[1729005334733,1.41,152.7,152.62,3.2764]
[1729005334734,3.2758,152.66,152.62,3.2764]
[1729005334933,45.25,152.66,152.51,45.25]
[1729005335117,1.4204,152.65,152.51,45.25]
[1729005335417,1.4204,152.65,152.53,45.25]
[1729005335621,45.25,152.69,152.55,45.25]
[1729005335829,3.2763,152.64,152.59,3.277]
[1729005336131,1.41,152.7,152.58,45.25]
[1729005336434,1.41,152.7,152.63,3.2762]
[1729005336633,1.41,152.7,152.58,48.6044332]
[1729005336927,45.25,152.69,152.58,48.6044332]
[1729005337141,45.25,152.69,152.57,3.35148295]
[1729005337428,3.2763,152.64,152.58,3.3301756]
[1729005337636,45.25,152.69,152.55,45.25]
[1729005337933,45.25,152.69,152.55,48.452549]
[1729005337934,1.12607598,152.68,152.55,48.452549]
[1729005338629,45.25,152.69,152.55,48.452549]
[1729005338829,45.25,152.69,152.6,3.2768]
[1729005338830,3.2763,152.64,152.6,3.2768]
[1729005339131,45.25,152.69,152.56,1.3987]
[1729005339331,45.25,152.64,152.31,9.08389332]
[1729005339533,45.25,152.64,152.41,45.25]
[1729005339534,45.25,152.54,152.41,45.25]
[1729005339745,45.25,152.51,152.38,45.25]
[1729005339943,45.25,152.53,152.38,45.25]
[1729005340234,45.25,152.53,152.41,45.25]
[1729005340451,3.25892959,152.54,152.43,45.25]
[1729005340637,45.25,152.56,152.43,45.25]
[1729005341134,3.35739422,152.55,152.43,48.4758539]
[1729005341335,3.35739422,152.55,152.5,45.25]
[1729005341733,3.35739422,152.55,152.52,3.2786]
[1729005341930,45.25,152.64,152.5,45.25]
[1729005342135,14.76,152.65,152.57,3.2775]
[1729005342136,3.2768,152.61,152.57,3.2775]
[1729005342332,14.76,152.65,152.53,48.45092357]
[1729005342540,45.25,152.61,152.46,47.9244]
[1729005342743,45.25,152.61,152.48,45.25]
[1729005343046,14.76,152.65,152.51,45.25]
[1729005343047,45.25,152.64,152.51,45.25]
[1729005343234,3.2771,152.6,152.51,48.4758539]
[1729005343430,45.25,152.64,152.51,48.4758539]
[1729005343729,3.2767,152.62,152.58,3.2772]
[1729005344239,3.2787,152.52,152.45,3.2801]
[1729005344541,14.76,152.61,152.45,3.31203127]
[1729005344838,3.2786,152.53,152.47,3.2797]
[1729005345042,3.25825708,152.54,152.43,45.25]
[1729005345242,45.25,152.55,152.43,48.53711152]
[1729005345433,45.25,152.55,152.43,3.28711152]
[1729005345633,45.25,152.57,152.43,45.25]
[1729005345835,3.2795,152.49,152.41,45.25]
[1729005346036,45.25,152.56,152.43,45.25]
[1729005346535,45.25,152.59,152.46,45.25]
[1729005346741,45.25,152.59,152.49,3.2792]
[1729005346930,45.25,152.59,152.46,45.25]
[1729005347642,3.2784,152.54,152.5,3.2791]
[1729005348350,3.2778,152.57,152.52,3.2786]
[1729005348536,3.21300806,152.62,152.48,48.56803738]
[1729005348739,45.25,152.64,152.51,45.25]
[1729005348946,48.58870131,152.64,152.56,3.2777]
[1729005349152,48.58870131,152.64,152.51,48.46307772]
[1729005349457,3.2764,152.63,152.59,3.277]
[1729005349748,1.3399,152.66,152.54,45.25]
[1729005350142,3.2762,152.64,152.54,48.52342952]
[1729005350346,1.3399,152.66,152.54,48.52342952]
[1729005350555,1.3399,152.66,152.57,3.2775]
[1729005350556,3.2762,152.64,152.57,3.2775]
[1729005350752,3.2762,152.64,152.54,48.52342952]
[1729005350948,1.3399,152.66,152.36,77.408]
[1729005351251,45.25,152.61,152.47,45.25]
[1729005351457,45.25,152.61,152.47,48.45549183]
[1729005351653,3.277,152.6,152.53,3.2784]
[1729005351854,45.25,152.61,152.5,45.25]
[1729005352050,45.25,152.61,152.5,48.46139272]
[1729005352252,3.2776,152.58,152.53,3.2784]
[1729005352451,3.2776,152.58,152.5,48.46139272]
[1729005352653,45.25,152.64,152.52,45.25]
[1729005352853,1.3399,152.66,152.55,45.25]
[1729005353055,45.25,152.69,152.57,45.25]
[1729005353256,3.2763,152.64,152.59,3.2772]
[1729005353463,45.25,152.69,152.55,61.05]
[1729005353654,1.12915984,152.68,152.55,61.05]
[1729005353851,45.25,152.69,152.55,61.05]
[1729005354161,45.25,152.66,152.55,61.05]
[1729005354463,45.25,152.66,152.55,15.8]
[1729005354962,45.25,152.64,152.51,4.2235]
[1729005355256,45.25,152.61,152.51,4.2235]
[1729005355461,3.2776,152.58,152.51,4.2235]
[1729005355661,45.25,152.61,152.51,4.2235]
[1729005355874,45.25,152.61,152.51,1.4293]
[1729005356158,45.25,152.59,152.49,15.8]
[1729005356359,3.2785,152.53,152.49,6.61516077]
[1729005356566,45.25,152.61,152.39,10.6433]
[1729005356567,45.25,152.56,152.42,45.25]
[1729005356862,45.25,152.54,152.4,45.25]
[1729005357165,45.25,152.54,152.45,3.2802]
[1729005357166,3.2795,152.49,152.45,3.2802]
[1729005357354,3.2795,152.49,152.46,3.35991871]
[1729005358054,46.6506,152.54,152.46,3.35991871]
[1729005358365,45.25,152.51,152.4,45.25]
[1729005358552,3.2797,152.48,152.44,3.2803]
[1729005358749,45.25,152.51,152.39,74.9005]
[1729005358963,3.2799,152.47,152.43,3.2805]
[1729005359469,3.2769,152.61,152.45,90.5]
[1729005359674,45.25,152.63,152.49,45.25]
[1729005359961,1.12605681,152.6,152.49,45.25]
[1729005360170,45.25,152.52,151.97,225.0]
[1729005360355,3.33662468,152.51,152.38,45.25]
[1729005360559,45.25,152.49,152.38,45.25]
[1729005360761,45.25,152.47,152.39,3.26103871]
[1729005360960,45.25,152.47,152.35,45.25]
[1729005361362,3.2802,152.45,152.35,48.60652697]
[1729005361566,4.1368,152.5,152.37,45.25]
[1729005361870,2.7535,152.5,152.42,45.25]
[1729005362174,45.25,152.56,152.42,45.25]
[1729005362370,45.25,152.53,152.4,45.25]
[1729005362673,3.91216674,152.55,152.37,45.25]
[1729005362674,45.25,152.5,152.37,45.25]
[1729005362966,1.3753,152.49,152.37,48.5674785]
[1729005363167,45.25,152.54,152.37,48.5674785]
[1729005363168,45.25,152.54,152.4,45.25]
[1729005363364,3.2792,152.5,152.44,3.2804]
[1729005363572,3.20558333,152.52,152.44,3.2804]
[1729005363773,46.6253,152.54,152.43,3.33093218]
[1729005363972,1.3753,152.54,152.43,45.25]
[1729005364172,1.3753,152.54,152.38,45.25]
[1729005364173,1.3753,152.54,152.46,45.25]
[1729005364365,1.3753,152.54,152.4,3.23698346]
[1729005364366,1.3753,152.59,152.48,45.25]
[1729005364562,1.12920572,152.58,152.48,45.25]
[1729005364765,2.7936,152.62,152.51,45.25]
[1729005364966,6.0702,152.62,152.58,3.2774]
[1729005365172,6.0702,152.62,152.53,45.25]
[1729005365173,2.7936,152.62,152.53,45.25]
[1729005365470,2.7936,152.62,152.48,48.53587454]
[1729005365667,45.25,152.6,152.48,45.25]
[1729005365874,45.25,152.54,152.48,3.26093681]
[1729005366072,45.25,152.54,152.48,3.2795]
[1729005366375,48.59526573,152.54,152.43,45.25]
[1729005366571,45.25,152.54,152.4,64.28698346]
[1729005366774,45.25,152.57,152.43,45.25]
[1729005367166,1.3464,152.59,152.47,45.25]
[1729005367363,2.7936,152.62,152.52,45.25]
[1729005367571,6.0702,152.62,152.58,3.2774]
[1729005367868,2.7936,152.62,152.52,48.60499744]
[1729005368272,2.7936,152.62,152.59,3.2772]
[1729005368579,2.7936,152.62,152.52,48.60499744]
[1729005368767,2.7936,152.62,152.58,3.2774]
[1729005368969,2.7936,152.62,152.52,48.60499744]
[1729005369271,2.7936,152.62,152.56,45.25]
[1729005369768,2.7936,152.62,152.59,3.2772]
[1729005369972,3.36090297,152.65,152.56,45.25]
[1729005370270,1.3464,152.66,152.53,45.25]
[1729005370271,1.13016767,152.64,152.53,45.25]
[1729005370574,3.3061347,152.65,152.53,45.25]
[1729005370766,3.2774,152.59,152.54,3.2781]
[1729005371167,4.67154867,152.66,152.54,45.25]
[1729005371372,3.2766,152.63,152.58,3.2774]
[1729005371967,3.2766,152.62,152.58,3.2774]
[1729005372163,2.7598,152.68,152.59,45.25]
[1729005372365,2.7598,152.68,152.63,3.2761]
[1729005372677,2.7598,152.68,152.59,45.25]
[1729005372975,3.2751,152.69,152.62,45.25]
[1729005373278,1.3259,152.71,152.65,3.2758]
[1729005373474,1.3259,152.71,152.62,45.25]
[1729005373972,3.2754,152.68,152.63,3.2762]
[1729005374177,1.3259,152.71,152.62,45.25]
[1729005374377,1.3259,152.71,152.64,45.25]
[1729005374568,3.2749,152.7,152.62,45.25]
[1729005374763,1.3259,152.71,152.62,45.25]
[1729005376175,4.6006,152.71,152.66,3.2755]
[1729005376374,1.3259,152.71,152.62,45.25]
[1729005376679,1.3259,152.71,152.68,3.2751]
[1729005376872,1.3259,152.71,152.62,45.25]
[1729005377276,3.2753,152.68,152.62,45.25]
[1729005377579,1.3259,152.71,152.62,45.25]
[1729005377770,1.3259,152.71,152.62,48.52611056]
[1729005378372,4.6007,152.71,152.67,3.2754]
[1729005378565,2.7591,152.75,152.62,48.52611056]
[1729005378768,1.13189043,152.74,152.65,45.25]
[1729005378986,1.13189043,152.74,152.62,48.52611056]
[1729005379174,2.7591,152.75,152.62,48.52611056]
[1729005379482,3.2749,152.7,152.66,3.2756]
[1729005379669,1.13126284,152.74,152.67,45.25]
[1729005379867,2.7591,152.75,152.67,45.25]
[1729005380671,3.2741,152.74,152.7,3.2747]
[1729005380872,2.7591,152.75,152.67,45.25]
[1729005381068,3.274,152.74,152.7,3.2747]
[1729005381281,3.274,152.74,152.67,45.25]
[1729005381472,1.3386,152.79,152.69,45.25]
[1729005381671,3.2733,152.78,152.74,3.2739]
[1729005381973,1.3386,152.79,152.69,45.25]
[1729005382184,3.2738,152.75,152.72,3.2743]
[1729005382384,1.3386,152.79,152.69,45.25]
[1729005382683,3.2733,152.78,152.74,3.2739]
[1729005382879,2.8004,152.81,152.72,45.25]
[1729005383076,1.1273023,152.8,152.73,3.33312653]
[1729005383270,3.2729,152.79,152.75,3.2736]
[1729005383674,1.3249,152.83,152.74,45.25]
[1729005383980,2.7201,152.87,152.74,45.25]
[1729005384185,1.12790613,152.86,152.74,45.25]
[1729005384480,1.12790613,152.86,152.8,45.25]
[1729005384679,125.22340366,152.92,152.82,45.25]
[1729005384680,1.12790613,152.87,152.82,45.25]
[1729005384881,49.2902,152.95,152.82,45.25]
[1729005385070,1.12894897,152.94,152.82,45.25]
[1729005385377,1.12894897,152.94,152.77,45.25]
[1729005385378,45.25,152.92,152.77,45.25]
[1729005385579,45.25,152.87,152.74,119.36738466]
[1729005385781,45.25,152.84,152.72,3.26565168]
[1729005385973,3.2734,152.77,152.72,3.2743]
[1729005386174,3.27515057,152.79,152.71,45.25]
[1729005386383,61.03,152.84,152.71,45.25]
[1729005386787,45.25,152.82,152.69,45.25]
[1729005386975,1.1276761,152.81,152.69,45.25]
[1729005387279,1.1276761,152.81,152.71,45.25]
[1729005387484,64.37044135,152.84,152.71,48.45091512]
[1729005387680,1.1278013,152.83,152.71,48.45091512]
[1729005388485,1.1278013,152.83,152.68,45.25]
[1729005388686,45.25,152.82,152.68,45.25]
[1729005388892,45.25,152.79,152.67,1.4062]